fUST/lending_fUST_20241024
["ID","MTS","AMOUNT","RATE_DAILY","PERIOD"]
[340716023,1729704639180,-600.0,0.00018593,2]
[340716025,1729704639190,-458.69058951,0.00018616,2]
[340716027,1729704639200,-821.02989,0.00018645,2]
[340716029,1729704639212,-8890.20115101,0.0001876,2]
[340716031,1729704639221,-317.74243399,0.0001876,2]
[340716033,1729704639231,-600.0,0.00018785,2]
[340716035,1729704639242,-646.0,0.000188,2]
[340716037,1729704639253,-500.0,0.000188,2]
[340716039,1729704639264,-500.0,0.00018857,2]
[340716041,1729704639273,-500.3261136,0.0001888,2]
[340716043,1729704639283,-769.99999901,0.0001888,2]
[340716045,1729704639292,-1000.0,0.00018895,2]
[340716048,1729704639302,-160.633,0.000189,2]
[340716050,1729704639312,-1000.0,0.00018917,2]
[340716052,1729704639322,-1000.0,0.00018925,2]
[340716054,1729704639332,-1000.0,0.00018927,2]
[340716056,1729704639341,-1000.0,0.00018928,2]
[340716058,1729704639351,-1000.0,0.00018932,2]
[340716060,1729704639361,-1000.0,0.00018951,2]
[340716062,1729704639371,-232.0,0.0001897,2]
[340716064,1729704639381,-600.0,0.00018976,2]
[340716066,1729704639391,-1000.0,0.00018977,2]
[340716068,1729704639401,-1000.0,0.0001898,2]
[340716070,1729704639411,-1000.0,0.00018982,2]
[340716072,1729704639421,-500.33589352,0.00019,2]
[340716074,1729704639430,-153.0,0.00019,2]
[340716076,1729704639440,-2220.0,0.00019,2]
[340716078,1729704639449,-2631.06935206,0.00019,2]
[340716195,1729704640569,-7368.93064794,0.00019,2]
[340716197,1729704640580,-4935.88088589,0.00019,2]
[340716204,1729704640632,-13419.11911411,0.00019,2]
[340716206,1729704640642,-682.0,0.00019,2]
[340716208,1729704640652,-1000.0,0.00019,2]
[340716210,1729704640662,-500.0,0.00019,2]
[340716212,1729704640672,-500.0,0.0001902,2]
[340716214,1729704640682,-1000.0,0.00019027,2]
[340716216,1729704640691,-156.0,0.0001907,2]
[340716218,1729704640701,-1000.0,0.00019077,2]
[340716220,1729704640711,-1000.0,0.00019082,2]
[340716222,1729704640720,-1000.0,0.00019114,2]
[340716224,1729704640730,-1000.0,0.00019116,2]
[340716226,1729704640740,-364.26457498,0.00019131,2]
[340716228,1729704640749,-3034.87990319,0.00019167,2]
[340716230,1729704640759,-500.0,0.00019167,2]
[340716232,1729704640768,-151.0,0.00019168,2]
[340716233,1729704640778,-600.0,0.00019168,2]
[340716235,1729704640788,-20627.7548399,0.00019168,3]
[340716237,1729704640798,-38880.3634849,0.00019168,3]
[340716239,1729704640808,-215.46536958,0.00019177,2]
[340716241,1729704640817,-500.0,0.00019178,2]
[340716243,1729704640827,-151.0,0.00019178,2]
[340716245,1729704640837,-151.0,0.00019178,2]
[340716247,1729704640847,-151.0,0.00019178,2]
[340716249,1729704640857,-151.0,0.00019178,2]
[340716250,1729704640867,-151.0,0.00019178,2]
[340716251,1729704640876,-151.0,0.00019178,2]
[340716252,1729704640889,-151.0,0.00019178,2]
[340716254,1729704640899,-151.0,0.00019178,2]
[340716256,1729704640908,-151.0,0.00019178,2]
[340716258,1729704640918,-151.0,0.00019178,2]
[340716260,1729704640929,-151.0,0.00019178,2]
[340716262,1729704640938,-151.0,0.00019178,2]
[340716264,1729704640948,-229.393939,0.00019178,2]
[340716266,1729704640958,-1590.0,0.00019178,2]
[340716268,1729704640968,-151.0,0.00019178,2]
[340716270,1729704640979,-500.0,0.00019178,2]
[340716272,1729704640989,-500.0,0.00019178,2]
[340716273,1729704640998,-500.0,0.00019178,2]
[340716274,1729704641008,-370.011927,0.00019178,2]
[340716275,1729704641018,-500.0,0.0001926,2]
[340716276,1729704641028,-500.0,0.00019294,2]
[340716277,1729704641038,-877.30917746,0.0001936,2]
[340716278,1729704641047,-500.0,0.00019452,2]
[340716279,1729704641057,-151.0,0.00019452,2]
[340716280,1729704641067,-500.0,0.00019534,2]
[340716281,1729704641076,-150.112233,0.000196,2]
[340716282,1729704641085,-500.0,0.00019677,2]
[340716283,1729704641095,-954.50286231,0.0001969,2]
[340716284,1729704641108,-150.112233,0.000197,2]
[340716285,1729704641118,-150.112233,0.000197,2]
[340716286,1729704641128,-150.112233,0.000197,2]
[340716287,1729704641137,-150.112233,0.000197,2]
[340716288,1729704641147,-500.0,0.00019726,2]
[340716290,1729704641157,-600.0,0.0001977,2]
[340716292,1729704641167,-41255.5096799,0.0001977,3]
[340716294,1729704641176,-77760.7269699,0.0001977,3]
[340716296,1729704641186,-500.0,0.00019773,2]
[340716298,1729704641195,-500.0,0.00019773,2]
[340716300,1729704641205,-500.0,0.00019773,2]
[340716302,1729704641214,-500.0,0.00019773,2]
[340716304,1729704641224,-500.0,0.00019773,2]
[340716306,1729704641233,-500.0,0.00019773,2]
[340716308,1729704641243,-151.0,0.0001978,2]
[340716310,1729704641253,-151.0,0.0001978,2]
[340716312,1729704641262,-151.0,0.0001978,2]
[340716314,1729704641273,-165022.038719,0.0001978,3]
[340716316,1729704641283,-155521.45394,0.0001978,3]
[340716318,1729704641292,-10043.3103485,0.0001979,2]
[340716320,1729704641302,-6673.77091375,0.0001979,2]
[340716323,1729704641313,-151.0,0.0001979,2]
[340716325,1729704641322,-279.71721,0.0001979,2]
[340716327,1729704641332,-499864.67188632,0.0001979,2]
[340716329,1729704641341,-151.0,0.0001979,2]
[340716331,1729704641352,-151.0,0.0001979,2]
[340716332,1729704641361,-252.645245,0.0001979,2]
[340716335,1729704641370,-151.0,0.0001979,2]
[340716337,1729704641380,-10000.0,0.0001979,2]
[340716339,1729704641389,-151.0,0.0001979,2]
[340716341,1729704641399,-686.520192,0.0001979,2]
[340716343,1729704641408,-686.520192,0.0001979,2]
[340716345,1729704641417,-151.0,0.0001979,2]
[340716347,1729704641427,-151.0,0.0001979,2]
[340716349,1729704641437,-151.0,0.0001979,2]
[340716351,1729704641446,-151.0,0.0001979,2]
[340716352,1729704641456,-512.477678,0.0001979,2]
[340716354,1729704641465,-151.0,0.0001979,2]
[340716356,1729704641474,-151.0,0.0001979,2]
[340716358,1729704641483,-151.0,0.0001979,2]
[340716361,1729704641494,-649.131643,0.0001979,2]
[340716363,1729704641503,-151.0,0.0001979,2]
[340716365,1729704641513,-154.59055,0.0001979,2]
[340716367,1729704641523,-173.10524,0.0001979,2]
[340716369,1729704641533,-173.10524,0.0001979,2]
[340716371,1729704641542,-151.0,0.0001979,2]
[340716373,1729704641551,-151.0,0.0001979,2]
[340716375,1729704641561,-151.0,0.0001979,2]
[340716377,1729704641570,-152.085734,0.0001979,2]
[340716379,1729704641579,-151.0,0.0001979,2]
[340716381,1729704641590,-151.0,0.0001979,2]
[340716383,1729704641600,-151.0,0.0001979,2]
[340716385,1729704641610,-151.0,0.0001979,2]
[340716387,1729704641619,-151.0,0.0001979,2]
[340716389,1729704641628,-1503.87721,0.0001979,2]
[340716391,1729704641638,-1503.87721,0.0001979,2]
[340716393,1729704641647,-187.227855,0.0001979,2]
[340716395,1729704641657,-187.227855,0.0001979,2]
[340716397,1729704641666,-151.0,0.0001979,2]
[340716400,1729704641676,-151.0,0.0001979,2]
[340716402,1729704641685,-151.0,0.0001979,2]
[340716424,1729704641695,-151.0,0.0001979,2]
[340716427,1729704641898,-157.507902,0.0001979,2]
[340716429,1729704641908,-151.0,0.0001979,2]
[340716431,1729704641917,-151.0,0.0001979,2]
[340716433,1729704641927,-151.0,0.0001979,2]
[340716434,1729704641937,-944.958404,0.0001979,2]
[340716436,1729704641947,-944.958404,0.0001979,2]
[340716438,1729704641957,-151.0,0.0001979,2]
[340716440,1729704641967,-3000.0,0.0001979,2]
[340716442,1729704641975,-505.682004,0.0001979,2]
[340716444,1729704641985,-208.2668,0.000198,2]
[340716446,1729704641995,-151.0,0.000198,2]
[340716448,1729704642004,-500.0,0.00019808,2]
[340716450,1729704642014,-150.112233,0.000199,2]
[340716451,1729704642023,-500.0,0.00019973,2]
[340716452,1729704642033,-500.0,0.00019973,2]
[340716453,1729704642043,-500.0,0.00019973,2]
[340716455,1729704642052,-500.0,0.00019973,2]
[340716456,1729704642062,-500.0,0.00019973,2]
[340716457,1729704642071,-500.0,0.00019973,2]
[340716459,1729704642080,-178.74123604,0.00019973,2]
[340716461,1729704642090,-500.0,0.00019973,2]
[340716462,1729704642101,-543.80034638,0.00019973,2]
[340716464,1729704642111,-317.16029281,0.00019973,2]
[340716466,1729704642120,-500.0,0.00019973,2]
[340716468,1729704642130,-500.0,0.00019989,2]
[340716470,1729704642139,-115377.07157361,0.0001999,2]
[340716472,1729704642399,-5468.55479114,0.0001999,2]
[340716473,1729704642600,-1804.0,0.00017701,2]
[340716474,1729704642609,-173687.37363525,0.0001999,2]
[340716475,1729704642619,-151.0,0.0001999,2]
[340716476,1729704642628,-151.0,0.0001999,2]
[340716477,1729704642637,-172.184349,0.0001999,2]
[340716478,1729704642647,-172.184349,0.0001999,2]
[340716479,1729704642656,-227.33081,0.0001999,2]
[340716480,1729704642665,-151.0,0.0001999,2]
[340716481,1729704642675,-151.0,0.0001999,2]
[340716482,1729704642685,-257.591428,0.0001999,2]
[340716483,1729704642694,-257.591428,0.0001999,2]
[340716484,1729704642704,-151.0,0.0001999,2]
[340716485,1729704642713,-151.0,0.0001999,2]
[340716486,1729704642722,-151.0,0.0001999,2]
[340716487,1729704642731,-151.0,0.0001999,2]
[340716490,1729704642741,-349.889533,0.0001999,2]
[340716493,1729704642751,-349.889533,0.0001999,2]
[340716496,1729704642760,-152.576636,0.0001999,2]
[340716498,1729704642769,-2755.531553,0.0001999,2]
[340716499,1729704642778,-2755.531553,0.0001999,2]
[340716500,1729704642787,-163.358939,0.0001999,2]
[340716501,1729704642796,-151.0,0.0001999,2]
[340716502,1729704642805,-163.358939,0.0001999,2]
[340716503,1729704642814,-151.0,0.0001999,2]
[340716504,1729704642823,-8004.639982,0.0001999,2]
[340716505,1729704642832,-686.520192,0.0001999,2]
[340716506,1729704642841,-686.520192,0.0001999,2]
[340716507,1729704642852,-151.0,0.0001999,2]
[340716509,1729704642861,-151.0,0.0001999,2]
[340716511,1729704642870,-151.0,0.0001999,2]
[340716513,1729704642880,-1920.097362,0.0001999,2]
[340716515,1729704642891,-512.477678,0.0001999,2]
[340716517,1729704642902,-151.0,0.0001999,2]
[340716519,1729704642911,-151.0,0.0001999,2]
[340716521,1729704642921,-151.0,0.0001999,2]
[340716522,1729704642930,-151.0,0.0001999,2]
[340716523,1729704642940,-151.0,0.0001999,2]
[340716524,1729704642950,-151.0,0.0001999,2]
[340716525,1729704642961,-649.131643,0.0001999,2]
[340716526,1729704642970,-614.015692,0.0001999,2]
[340716527,1729704642981,-614.015692,0.0001999,2]
[340716528,1729704642991,-173.10524,0.0001999,2]
[340716529,1729704643001,-173.10524,0.0001999,2]
[340716530,1729704643010,-151.0,0.0001999,2]
[340716531,1729704643020,-151.0,0.0001999,2]
[340716533,1729704643030,-151.0,0.0001999,2]
[340716535,1729704643039,-171.376277,0.0001999,2]
[340716537,1729704643049,-261.118338,0.0001999,2]
[340716539,1729704643058,-151.0,0.0001999,2]
[340716540,1729704643067,-151.0,0.0001999,2]
[340716542,1729704643077,-151.0,0.0001999,2]
[340716544,1729704643086,-151.0,0.0001999,2]
[340716546,1729704643096,-541.414558,0.0001999,2]
[340716548,1729704643107,-541.414558,0.0001999,2]
[340716550,1729704643117,-151.0,0.0001999,2]
[340716552,1729704643126,-1503.87721,0.0001999,2]
[340716554,1729704643135,-1503.87721,0.0001999,2]
[340716556,1729704643144,-187.227855,0.0001999,2]
[340716558,1729704643154,-187.227855,0.0001999,2]
[340716560,1729704643164,-151.0,0.0001999,2]
[340716562,1729704643173,-151.0,0.0001999,2]
[340716564,1729704643183,-151.0,0.0001999,2]
[340716566,1729704643193,-151.0,0.0001999,2]
[340716568,1729704643202,-151.0,0.0001999,2]
[340716570,1729704643212,-151.0,0.0001999,2]
[340716572,1729704643221,-151.0,0.0001999,2]
[340716574,1729704643230,-944.958404,0.0001999,2]
[340716576,1729704643240,-944.958404,0.0001999,2]
[340716578,1729704643249,-151.0,0.0001999,2]
[340716580,1729704643259,-21275.56340415,0.0002,2]
[340716582,1729704643268,-988.57636788,0.0002,10]
[340716584,1729704643278,-500.0,0.0002,2]
[340716586,1729704643288,-512.0,0.0002,2]
[340716588,1729704643297,-349.74882566,0.0002,2]
[340716590,1729704643308,-31501.9507408,0.0002,2]
[340716592,1729704643318,-4326.60604267,0.0002,2]
[340716593,1729704643327,-6830.23095669,0.0002,2]
[340716606,1729704643443,-1000.0,0.000195,2]
[340716608,1729704643453,-4664.12881559,0.0002,2]
[340716610,1729704643463,-1508.63026368,0.0002,2]
[340716615,1729704643504,-400.57063385,0.0002,2]
[340716712,1729704646246,-1154.0,0.00017701,2]
[340716714,1729704646256,-8228.41213191,0.0002,2]
[340716716,1729704646265,-16066.34371466,0.0002,2]
[340716719,1729704646277,-263.86369814,0.0002,2]
[340716721,1729704646289,-1725.34125754,0.0002,2]
[340716723,1729704646298,-2500.0,0.0002,7]
[340716725,1729704646308,-2000.0,0.0002,2]
[340716727,1729704646317,-184.0,0.0002,2]
[340716729,1729704646326,-1009.0,0.0002,2]
[340716731,1729704646337,-299.22972238,0.0002,2]
[340716733,1729704646347,-160.28,0.0002,2]
[340716735,1729704646359,-11079.8995503,0.0002,2]
[340716737,1729704646368,-2602.05122554,0.0002,3]
[340716739,1729704646379,-500.0,0.0002,2]
[340716741,1729704646388,-158.22310481,0.0002,2]
[340716743,1729704646398,-1897.0,0.0002,4]
[340716745,1729704646408,-151.0,0.0002,2]
[340716747,1729704646417,-151.0,0.0002,2]
[340716749,1729704646428,-172.184349,0.0002,2]
[340716751,1729704646438,-172.184349,0.0002,2]
[340716753,1729704646447,-172.184349,0.0002,2]
[340716755,1729704646458,-172.184349,0.0002,2]
[340716758,1729704646468,-227.33081,0.0002,2]
[340716760,1729704646480,-227.33081,0.0002,2]
[340716762,1729704646491,-151.0,0.0002,2]
[340716764,1729704646502,-151.0,0.0002,2]
[340716766,1729704646511,-257.591428,0.0002,2]
[340716768,1729704646521,-257.591428,0.0002,2]
[340716770,1729704646532,-257.591428,0.0002,2]
[340716772,1729704646541,-257.591428,0.0002,2]
[340716774,1729704646550,-151.0,0.0002,2]
[340716776,1729704646560,-151.0,0.0002,2]
[340716778,1729704646570,-151.0,0.0002,2]
[340716780,1729704646579,-151.0,0.0002,2]
[340716782,1729704646589,-151.0,0.0002,2]
[340716783,1729704646599,-151.0,0.0002,2]
[340716786,1729704646611,-151.0,0.0002,2]
[340716788,1729704646621,-163.518947,0.0002,2]
[340716790,1729704646630,-349.889533,0.0002,2]
[340716791,1729704646639,-349.889533,0.0002,2]
[340716793,1729704646648,-349.889533,0.0002,2]
[340716795,1729704646658,-349.889533,0.0002,2]
[340716797,1729704646667,-2755.531553,0.0002,2]
[340716799,1729704646678,-2755.531553,0.0002,2]
[340716801,1729704646687,-2755.531553,0.0002,2]
[340716803,1729704646697,-2755.531553,0.0002,2]
[340716805,1729704646706,-163.358939,0.0002,2]
[340716807,1729704646716,-163.358939,0.0002,2]
[340716809,1729704646725,-151.0,0.0002,2]
[340716811,1729704646735,-151.0,0.0002,2]
[340716813,1729704646744,-163.358939,0.0002,2]
[340716815,1729704646755,-163.358939,0.0002,2]
[340716817,1729704646765,-174.178916,0.0002,2]
[340716819,1729704646775,-686.520192,0.0002,2]
[340716821,1729704646785,-686.520192,0.0002,2]
[340716823,1729704646795,-686.520192,0.0002,2]
[340716825,1729704646804,-686.520192,0.0002,2]
[340716827,1729704646813,-151.0,0.0002,2]
[340716829,1729704646823,-151.0,0.0002,2]
[340716831,1729704646832,-151.0,0.0002,2]
[340716833,1729704646841,-151.0,0.0002,2]
[340716835,1729704646850,-151.0,0.0002,2]
[340716837,1729704646863,-151.0,0.0002,2]
[340716839,1729704646872,-1920.097362,0.0002,2]
[340716841,1729704646882,-1920.097362,0.0002,2]
[340716843,1729704646895,-512.477678,0.0002,2]
[340716845,1729704646904,-512.477678,0.0002,2]
[340716847,1729704646913,-151.0,0.0002,2]
[340716849,1729704646923,-151.0,0.0002,2]
[340716851,1729704646933,-151.0,0.0002,2]
[340716853,1729704646942,-151.0,0.0002,2]
[340716855,1729704646952,-151.0,0.0002,2]
[340716857,1729704646962,-151.0,0.0002,2]
[340716859,1729704646973,-151.0,0.0002,2]
[340716861,1729704646982,-151.0,0.0002,2]
[340716863,1729704646991,-151.0,0.0002,2]
[340716865,1729704647001,-649.131643,0.0002,2]
[340716867,1729704647011,-649.131643,0.0002,2]
[340716868,1729704647020,-614.015692,0.0002,2]
[340716869,1729704647030,-614.015692,0.0002,2]
[340716870,1729704647039,-614.015692,0.0002,2]
[340716871,1729704647048,-614.015692,0.0002,2]
[340716872,1729704647057,-2219.0,0.0002,2]
[340716873,1729704647066,-10000.0,0.0002,2]
[340716874,1729704647075,-18354.0,0.0002,2]
[340716875,1729704647085,-173.10524,0.0002,2]
[340716876,1729704647094,-173.10524,0.0002,2]
[340716877,1729704647105,-173.10524,0.0002,2]
[340716878,1729704647115,-173.10524,0.0002,2]
[340716879,1729704647126,-681.0,0.0002,2]
[340716880,1729704647135,-151.0,0.0002,2]
[340716882,1729704647145,-276.84097,0.0002,2]
[340716884,1729704647154,-151.0,0.0002,2]
[340716886,1729704647164,-151.0,0.0002,2]
[340716888,1729704647173,-151.0,0.0002,2]
[340716890,1729704647183,-151.0,0.0002,2]
[340716891,1729704647193,-303.08788973,0.0002,2]
[340716893,1729704647202,-151.0,0.0002,2]
[340716895,1729704647212,-151.0,0.0002,2]
[340716897,1729704647222,-151.0,0.0002,2]
[340716900,1729704647232,-151.0,0.0002,2]
[340716902,1729704647242,-541.414558,0.0002,2]
[340716904,1729704647251,-541.414558,0.0002,2]
[340716906,1729704647261,-541.414558,0.0002,2]
[340716908,1729704647270,-541.414558,0.0002,2]
[340716910,1729704647280,-151.0,0.0002,2]
[340716912,1729704647289,-151.0,0.0002,2]
[340716914,1729704647298,-1503.87721,0.0002,2]
[340716916,1729704647307,-1503.87721,0.0002,2]
[340716918,1729704647316,-1503.87721,0.0002,2]
[340716920,1729704647325,-1503.87721,0.0002,2]
[340716922,1729704647334,-187.227855,0.0002,2]
[340716924,1729704647343,-187.227855,0.0002,2]
[340716926,1729704647353,-187.227855,0.0002,2]
[340716927,1729704647366,-187.227855,0.0002,2]
[340716929,1729704647376,-151.0,0.0002,2]
[340716931,1729704647385,-151.0,0.0002,2]
[340716933,1729704647394,-151.0,0.0002,2]
[340716935,1729704647404,-151.0,0.0002,2]
[340716937,1729704647413,-151.0,0.0002,2]
[340716940,1729704647422,-248.326733,0.0002,2]
[340716942,1729704647431,-151.0,0.0002,2]
[340716943,1729704647441,-151.0,0.0002,2]
[340716946,1729704647450,-303.08788973,0.0002,2]
[340716947,1729704647460,-151.0,0.0002,2]
[340716950,1729704647469,-151.0,0.0002,2]
[340716952,1729704647479,-188.560304,0.0002,2]
[340716954,1729704647489,-151.0,0.0002,2]
[340716956,1729704647498,-944.958404,0.0002,2]
[340716957,1729704647508,-151.0,0.0002,2]
[340716960,1729704647517,-944.958404,0.0002,2]
[340716961,1729704647527,-944.958404,0.0002,2]
[340716982,1729704647710,-944.958404,0.0002,2]
[340716984,1729704647721,-234.91838,0.0002,2]
[340716986,1729704647732,-151.54394486,0.0002,2]
[340716988,1729704647742,-1000.0,0.0002,2]
[340716990,1729704647752,-1000.0,0.00020047,2]
[340716993,1729704647761,-1000.0,0.00020047,2]
[340716995,1729704647771,-1000.0,0.00020047,2]
[340716997,1729704647781,-1000.0,0.00020047,2]
[340716999,1729704647791,-1000.0,0.00020047,2]
[340717001,1729704647800,-500.0,0.00020082,2]
[340717003,1729704647809,-900.0,0.00020159,2]
[340717005,1729704647818,-250.0,0.00020187,2]
[340717007,1729704647828,-900.0,0.00020193,2]
[340717009,1729704647837,-303.08788973,0.000202,2]
[340717011,1729704647847,-303.08788973,0.000202,2]
[340717013,1729704647859,-823.0,0.00020212,2]
[340717015,1729704647868,-1000.0,0.00020247,2]
[340717017,1729704647878,-1000.0,0.00020247,2]
[340717019,1729704647890,-1000.0,0.00020247,2]
[340717021,1729704647900,-1000.0,0.00020247,2]
[340717023,1729704647909,-688.11305617,0.00020247,2]
[340717025,1729704647919,-1000.0,0.00020247,2]
[340717027,1729704647929,-1000.0,0.00020247,2]
[340717029,1729704647938,-500.0,0.00020256,2]
[340717031,1729704647948,-1600.0,0.00020256,2]
[340717033,1729704647957,-463.0,0.0002028,3]
[340717035,1729704647968,-500.0,0.00020356,2]
[340717037,1729704647978,-500.0,0.00020359,2]
[340717039,1729704647987,-500.0,0.00020365,2]
[340717041,1729704647997,-146813.0,0.00020377,2]
[340717043,1729704648007,-151.0,0.00020377,2]
[340717045,1729704648016,-172.184349,0.00020377,2]
[340717047,1729704648026,-172.184349,0.00020377,2]
[340717048,1729704648036,-227.33081,0.00020377,2]
[340717049,1729704648046,-227.33081,0.00020377,2]
[340717050,1729704648056,-151.0,0.00020377,2]
[340717051,1729704648066,-257.591428,0.00020377,2]
[340717053,1729704648075,-257.591428,0.00020377,2]
[340717054,1729704648085,-151.0,0.00020377,2]
[340717055,1729704648094,-151.0,0.00020377,2]
[340717056,1729704648106,-151.0,0.00020377,2]
[340717057,1729704648115,-349.889533,0.00020377,2]
[340717058,1729704648125,-349.889533,0.00020377,2]
[340717059,1729704648134,-2755.531553,0.00020377,2]
[340717060,1729704648144,-2755.531553,0.00020377,2]
[340717061,1729704648154,-163.358939,0.00020377,2]
[340717062,1729704648164,-151.0,0.00020377,2]
[340717063,1729704648173,-163.358939,0.00020377,2]
[340717064,1729704648182,-10000.0,0.00020377,2]
[340717065,1729704648192,-686.520192,0.00020377,2]
[340717066,1729704648201,-686.520192,0.00020377,2]
[340717067,1729704648210,-151.0,0.00020377,2]
[340717068,1729704648220,-151.0,0.00020377,2]
[340717069,1729704648229,-151.0,0.00020377,2]
[340717070,1729704648239,-1920.097362,0.00020377,2]
[340717071,1729704648248,-512.477678,0.00020377,2]
[340717072,1729704648257,-512.477678,0.00020377,2]
[340717073,1729704648267,-151.0,0.00020377,2]
[340717074,1729704648276,-151.0,0.00020377,2]
[340717075,1729704648286,-151.0,0.00020377,2]
[340717076,1729704648296,-649.131643,0.00020377,2]
[340717077,1729704648305,-614.015692,0.00020377,2]
[340717078,1729704648314,-614.015692,0.00020377,2]
[340717079,1729704648324,-173.10524,0.00020377,2]
[340717080,1729704648333,-173.10524,0.00020377,2]
[340717081,1729704648342,-151.0,0.00020377,2]
[340717082,1729704648352,-151.0,0.00020377,2]
[340717083,1729704648363,-151.0,0.00020377,2]
[340717084,1729704648375,-151.0,0.00020377,2]
[340717085,1729704648384,-541.414558,0.00020377,2]
[340717086,1729704648394,-541.414558,0.00020377,2]
[340717087,1729704648403,-1503.87721,0.00020377,2]
[340717088,1729704648413,-1503.87721,0.00020377,2]
[340717089,1729704648422,-187.227855,0.00020377,2]
[340717090,1729704648432,-187.227855,0.00020377,2]
[340717091,1729704648441,-151.0,0.00020377,2]
[340717092,1729704648450,-151.0,0.00020377,2]
[340717093,1729704648459,-151.0,0.00020377,2]
[340717094,1729704648469,-151.0,0.00020377,2]
[340717095,1729704648479,-151.0,0.00020377,2]
[340717096,1729704648488,-944.958404,0.00020377,2]
[340717097,1729704648497,-944.958404,0.00020377,2]
[340717098,1729704648507,-303.08788973,0.000204,2]
[340717099,1729704648516,-303.08788973,0.000204,2]
[340717100,1729704648525,-361.0,0.00020447,2]
[340717101,1729704648534,-1500.0,0.00020447,2]
[340717102,1729704648543,-505.82428957,0.00020447,2]
[340717103,1729704648553,-1532.31365007,0.00020447,2]
[340717104,1729704648563,-1500.0,0.00020447,2]
[340717105,1729704648572,-1500.0,0.00020447,2]
[340717106,1729704648581,-500.0,0.0002051,2]
[340717107,1729704648591,-5424.01844279,0.00020551,15]
[340717108,1729704648601,-1600.0,0.00020559,2]
[340717109,1729704648613,-500.0,0.00020568,2]
[340717110,1729704648622,-900.0,0.00020595,2]
[340717111,1729704648631,-303.08788973,0.000206,2]
[340717112,1729704648640,-303.08788973,0.000206,2]
[340717113,1729704648650,-500.0,0.0002063,2]
[340717114,1729704648659,-1500.0,0.00020647,2]
[340717115,1729704648669,-1500.0,0.00020647,2]
[340717116,1729704648678,-1500.0,0.00020647,2]
[340717117,1729704648688,-1500.0,0.00020647,2]
[340717118,1729704648697,-350.0,0.0002068,2]
[340717119,1729704648707,-500.0,0.00020689,2]
[340717120,1729704648717,-1700.0,0.00020692,2]
[340717121,1729704648726,-500.0,0.00020721,2]
[340717122,1729704648735,-1600.0,0.00020728,2]
[340717123,1729704648745,-303.08788973,0.000208,2]
[340717124,1729704648754,-303.08788973,0.000208,2]
[340717125,1729704648764,-500.0,0.00020811,2]
[340717126,1729704648773,-161.00691751,0.000209,2]
[340717127,1729704648783,-500.0,0.00020904,2]
[340717128,1729704648792,-1600.0,0.0002091,2]
[340717129,1729704648801,-900.0,0.00020911,2]
[340717130,1729704648810,-2000.0,0.00020915,2]
[340717131,1729704648819,-2000.0,0.00020915,2]
[340717132,1729704648828,-2000.0,0.00020915,2]
[340717133,1729704648838,-900.0,0.00020981,2]
[340717134,1729704648847,-260.47996288,0.00021,2]
[340717135,1729704648858,-234.74398702,0.00021,2]